fUSD/lending_fUSD_20240403
["ID","MTS","AMOUNT","RATE_DAILY","PERIOD"]
[321424894,1712182284637,-513.82404215,0.00054794,120]
[321424895,1712182284652,-500.0,0.00054794,120]
[321424896,1712182284666,-549.12,0.00054794,120]
[321424897,1712182284681,-1326.32,0.00054794,120]
[321424898,1712182284695,-500.0,0.00054794,120]
[321424899,1712182284709,-500.0,0.00054794,120]
[321424900,1712182284724,-876.14,0.00054794,120]
[321424901,1712182284739,-1554.15,0.00054794,120]
[321424902,1712182284754,-500.0,0.00054794,120]
[321424903,1712182284770,-303.39878205,0.00054794,120]
[321424904,1712182284783,-500.0,0.00054794,120]
[321424905,1712182284798,-500.0,0.00054794,120]
[321424906,1712182284812,-500.0,0.00054794,120]
[321424907,1712182284827,-500.0,0.00054794,120]
[321424908,1712182284841,-500.0,0.00054794,120]
[321424909,1712182284855,-500.0,0.00054794,120]
[321424910,1712182284870,-500.0,0.00054794,120]
[321424911,1712182284884,-500.0,0.00054794,120]
[321424912,1712182284899,-509.1692284,0.00054794,120]
[321424913,1712182284913,-500.0,0.00054794,120]
[321424914,1712182284927,-500.0,0.00054794,120]
[321424915,1712182284941,-1275.42,0.00054794,120]
[321424916,1712182284956,-799.11,0.00054794,120]
[321424917,1712182284970,-500.0,0.00054794,120]
[321424918,1712182284984,-500.0,0.00054794,120]
[321424919,1712182284998,-672.33,0.00054794,120]
[321424920,1712182285012,-500.0,0.00054794,120]
[321424921,1712182285026,-500.0,0.00054794,120]
[321424922,1712182285041,-500.0,0.00054794,120]
[321424923,1712182285056,-799.72,0.00054794,120]
[321424924,1712182285264,-500.0,0.00054794,120]
[321424925,1712182285274,-500.0,0.00054794,120]
[321424926,1712182285283,-857.91,0.00054794,120]
[321424927,1712182285292,-515.59669646,0.00054794,120]
[321424928,1712182285301,-926.27,0.00054794,120]
[321424929,1712182285310,-500.0,0.00054794,120]
[321424930,1712182285321,-500.0,0.00054794,120]
[321424931,1712182285330,-500.0,0.00054794,120]
[321424932,1712182285339,-500.0,0.00054794,120]
[321424933,1712182285349,-1209.59,0.00054794,120]
[321424934,1712182285360,-500.0,0.00054794,120]
[321424935,1712182285369,-500.0,0.00054794,120]
[321424936,1712182285378,-500.0,0.00054794,120]
[321424937,1712182285388,-500.0,0.00054794,120]
[321424938,1712182285399,-500.0,0.00054794,120]
[321424939,1712182285407,-505.50190729,0.00054794,120]
[321424940,1712182285418,-500.0,0.00054794,120]
[321424941,1712182285426,-169.84024934,0.00054794,120]
[321424942,1712182285435,-500.0,0.00054794,120]
[321424943,1712182285445,-500.0,0.00054794,120]
[321424944,1712182285455,-500.0,0.00054794,120]
[321424945,1712182285464,-512.16,0.00054794,120]
[321424946,1712182285473,-500.0,0.00054794,120]
[321424947,1712182285482,-559.74,0.00054794,120]
[321424948,1712182285491,-500.0,0.00054794,120]
[321424949,1712182285500,-504.97131546,0.00054794,120]
[321424950,1712182285509,-500.0,0.00054794,120]
[321424951,1712182285518,-500.0,0.00054794,120]
[321424952,1712182285528,-1066.29,0.00054794,120]
[321424953,1712182285537,-500.0,0.00054794,120]
[321424954,1712182285546,-519.24943692,0.00054794,120]
[321424955,1712182285557,-500.0,0.00054794,120]
[321424956,1712182285566,-946.54,0.00054794,120]
[321424957,1712182285575,-533.89948382,0.00054794,120]
[321424958,1712182285584,-522.33257389,0.00054794,120]
[321424959,1712182285595,-500.0,0.00054794,120]
[321424960,1712182285606,-500.0,0.00054794,120]
[321424961,1712182285616,-936.38,0.00054794,120]
[321424962,1712182285625,-500.0,0.00054794,120]
[321424963,1712182285637,-781.02,0.00054794,120]
[321424964,1712182285646,-500.0,0.00054794,120]
[321424965,1712182285655,-502.14004124,0.00054794,120]
[321424966,1712182285665,-890.32,0.00054794,120]
[321424967,1712182285675,-500.0,0.00054794,120]
[321424968,1712182285685,-500.0,0.00054794,120]
[321424969,1712182285695,-500.0,0.00054794,120]
[321424970,1712182285704,-500.0,0.00054794,120]
[321424971,1712182285713,-500.0,0.00054794,120]
[321424972,1712182285722,-500.0,0.00054794,120]
[321424973,1712182285731,-1291.22,0.00054794,120]
[321424974,1712182285740,-500.08896784,0.00054794,120]
[321424975,1712182285750,-500.0,0.00054794,120]
[321424976,1712182285759,-500.0,0.00054794,120]
[321424977,1712182285771,-638.4,0.00054794,120]
[321424978,1712182285781,-521.5569587,0.00054794,120]
[321424979,1712182285791,-820.07148275,0.00054794,3]
[321424980,1712182285802,-500.0,0.00054794,120]
[321424981,1712182285812,-500.0,0.00054794,120]
[321424982,1712182285822,-500.0,0.00054794,120]
[321424983,1712182285831,-500.0,0.00054794,120]
[321424984,1712182285840,-500.0,0.00054794,120]
[321424985,1712182285849,-500.0,0.00054794,120]
[321424986,1712182285858,-500.0,0.00054794,120]
[321424987,1712182285867,-510.36156753,0.00054794,120]
[321424988,1712182285877,-500.0,0.00054794,120]
[321424989,1712182285886,-592.34,0.00054794,120]
[321424990,1712182285895,-500.0,0.00054794,120]
[321424991,1712182285904,-755.9,0.00054794,120]
[321424992,1712182285914,-10389.32,0.00054794,120]
[321424993,1712182285923,-500.0,0.00054794,120]
[321424994,1712182285932,-500.0,0.00054794,120]
[321424995,1712182285941,-500.0,0.00054794,120]
[321424996,1712182285952,-643.86,0.00054794,120]
[321424997,1712182285962,-645.32,0.00054794,120]
[321424998,1712182285972,-587.31,0.00054794,120]
[321424999,1712182285982,-500.0,0.00054794,120]
[321425000,1712182285991,-500.0,0.00054794,120]
[321425001,1712182286000,-582.55,0.00054794,120]
[321425002,1712182286010,-500.0,0.00054794,120]
[321425003,1712182286020,-1073.35,0.00054794,120]
[321425004,1712182286029,-510.32168254,0.00054794,120]
[321425005,1712182286038,-8464.65,0.00054794,120]
[321425006,1712182286047,-500.0,0.00054794,120]
[321425007,1712182286057,-500.0,0.00054794,120]
[321425008,1712182286066,-500.0,0.00054794,120]
[321425009,1712182286075,-500.0,0.00054794,120]
[321425010,1712182286085,-792.67,0.00054794,120]
[321425011,1712182286094,-500.0,0.00054794,120]
[321425012,1712182286103,-500.0,0.00054794,120]
[321425013,1712182286113,-500.0,0.00054794,120]
[321425014,1712182286123,-500.0,0.00054794,120]
[321425015,1712182286133,-500.0,0.00054794,120]
[321425016,1712182286142,-500.0,0.00054794,120]
[321425017,1712182286151,-500.0,0.00054794,120]
[321425018,1712182286161,-574.24,0.00054794,120]
[321425019,1712182286174,-506.77918107,0.00054794,120]
[321425020,1712182286183,-6759.44,0.00054794,120]
[321425021,1712182286194,-500.0,0.00054794,120]
[321425022,1712182286204,-500.0,0.00054794,120]
[321425023,1712182286214,-506.86763661,0.00054794,120]
[321425024,1712182286223,-2045.92,0.00054794,120]
[321425025,1712182286234,-1189.01,0.00054794,120]
[321425026,1712182286245,-500.0,0.00054794,120]
[321425027,1712182286256,-500.000001,0.00054794,120]
[321425028,1712182286266,-500.0,0.00054794,120]
[321425029,1712182286277,-500.0,0.00054794,120]
[321425030,1712182286288,-3000.0,0.00054794,120]
[321425031,1712182286299,-736.57,0.00054794,120]
[321425032,1712182286309,-500.0,0.00054794,30]
[321425033,1712182286319,-506.17338091,0.00054794,120]
[321425034,1712182286329,-1026.27,0.00054794,120]
[321425035,1712182286338,-268.70438512,0.00054794,120]
[321425036,1712182286348,-500.0,0.00054794,120]
[321425037,1712182286358,-500.0,0.00054794,120]
[321425038,1712182286368,-507.70012087,0.00054794,120]
[321425039,1712182286377,-1008.12,0.00054794,120]
[321425040,1712182286386,-5498.04,0.00054794,120]
[321425041,1712182286396,-500.0,0.00054794,120]
[321425042,1712182286405,-500.0,0.00054794,120]
[321425043,1712182286417,-500.0,0.00054794,120]
[321425044,1712182286426,-500.0,0.00054794,120]
[321425045,1712182286436,-503.54126789,0.00054794,120]
[321425046,1712182286445,-500.0,0.00054794,120]
[321425047,1712182286455,-506.15817152,0.00054794,120]
[321425048,1712182286464,-905.59,0.00054794,2]
[321425049,1712182286473,-500.0,0.00054794,120]
[321425050,1712182286482,-428.00812171,0.00054794,120]
[321425051,1712182286491,-651.77,0.00054794,120]
[321425052,1712182286500,-680.33,0.00054794,120]
[321425053,1712182286509,-500.0,0.00054794,120]
[321425054,1712182286518,-500.0,0.00054794,120]
[321425055,1712182286528,-504.60884603,0.00054794,120]
[321425056,1712182286537,-1318.99,0.00054794,120]
[321425057,1712182286545,-500.0,0.00054794,120]
[321425058,1712182286555,-625.04,0.00054794,120]
[321425059,1712182286564,-869.59,0.00054794,120]
[321425060,1712182286573,-500.0,0.00054794,120]
[321425061,1712182286583,-884.21,0.00054794,120]
[321425062,1712182286593,-500.0,0.00054794,120]
[321425063,1712182286606,-16118.97,0.00054794,120]
[321425064,1712182286615,-500.0,0.00054794,120]
[321425065,1712182286624,-500.0,0.00054794,120]
[321425066,1712182286634,-544.90672283,0.00054794,120]
[321425067,1712182286643,-503.99004899,0.00054794,120]
[321425068,1712182286653,-4639.27,0.00054794,120]
[321425069,1712182286662,-500.0,0.00054794,120]
[321425070,1712182286674,-1510.17,0.00054794,120]
[321425071,1712182286684,-521.86471097,0.00054794,120]
[321425072,1712182286694,-504.38099705,0.00054794,120]
[321425073,1712182286703,-612.31,0.00054794,120]
[321425074,1712182286712,-5757.53,0.00054794,120]
[321425075,1712182286721,-500.0,0.00054794,120]
[321425076,1712182286730,-1665.67,0.00054794,120]
[321425077,1712182286740,-1123.52,0.00054794,120]
[321425078,1712182286749,-519.25,0.00054794,120]
[321425079,1712182286759,-500.0,0.00054794,120]
[321425080,1712182286768,-1067.74,0.00054794,120]
[321425081,1712182286777,-502.67080247,0.00054794,120]
[321425082,1712182286785,-1129.11,0.00054794,120]
[321425083,1712182286795,-500.0,0.00054794,120]
[321425084,1712182286804,-500.0,0.00054794,120]
[321425085,1712182286813,-500.0,0.00054794,120]
[321425086,1712182286822,-820.77,0.00054794,120]
[321425087,1712182286831,-506.27276331,0.00054794,120]
[321425088,1712182286840,-1482.99,0.00054794,120]
[321425089,1712182286849,-5284.66,0.00054794,120]
[321425090,1712182286858,-500.0,0.00054794,120]
[321425091,1712182286868,-500.0,0.00054794,120]
[321425092,1712182286877,-1031.33,0.00054794,120]
[321425093,1712182286886,-6341.12,0.00054794,120]
[321425094,1712182286895,-504.46862411,0.00054794,120]
[321425095,1712182286904,-634.4,0.00054794,120]
[321425096,1712182286913,-2231.2,0.00054794,120]
[321425097,1712182286923,-500.0,0.00054794,120]
[321425098,1712182286932,-375.6006414,0.00054794,120]
[321425099,1712182286942,-1584.76,0.00054794,120]
[321425100,1712182286951,-500.0,0.00054794,120]
[321425101,1712182286961,-506.96908767,0.00054794,120]
[321425102,1712182286970,-500.0,0.00054794,120]
[321425103,1712182286979,-773.21,0.00054794,120]
[321425104,1712182286988,-500.0,0.00054794,120]
[321425105,1712182286997,-500.0,0.00054794,120]
[321425106,1712182287007,-541.88,0.00054794,120]
[321425107,1712182287016,-391.0797547,0.00054794,120]
[321425108,1712182287025,-590.98,0.00054794,120]
[321425109,1712182287035,-512.32222869,0.00054794,120]
[321425110,1712182287044,-2029.16,0.00054794,120]
[321425111,1712182287053,-500.0,0.00054794,120]
[321425112,1712182287062,-639.31,0.00054794,120]
[321425113,1712182287072,-500.0,0.00054794,120]
[321425114,1712182287081,-500.0,0.00054794,120]
[321425115,1712182287090,-500.0,0.00054794,120]
[321425116,1712182287100,-500.0,0.00054794,120]
[321425117,1712182287109,-2905.31,0.00054794,120]
[321425118,1712182287118,-500.0,0.00054794,120]
[321425119,1712182287127,-500.0,0.00054794,120]
[321425120,1712182287136,-500.0,0.00054794,120]
[321425121,1712182287145,-500.0,0.00054794,120]
[321425122,1712182287154,-509.10376623,0.00054794,120]
[321425123,1712182287163,-1182.15,0.00054794,120]
[321425124,1712182287174,-507.92757659,0.00054794,120]
[321425125,1712182287183,-500.0,0.00054794,120]
[321425126,1712182287192,-506.95234454,0.00054794,120]
[321425127,1712182287201,-500.0,0.00054794,120]
[321425128,1712182287210,-500.0,0.00054794,120]
[321425129,1712182287219,-500.0,0.00054794,120]
[321425130,1712182287229,-510.57424273,0.00054794,120]
[321425131,1712182287238,-500.0,0.00054794,120]
[321425132,1712182287247,-504.85,0.00054794,120]
[321425133,1712182287256,-1522.27,0.00054794,7]
[321425134,1712182287265,-500.0,0.00054794,120]
[321425135,1712182287274,-3000.0,0.00054794,120]
[321425136,1712182287284,-1565.32,0.00054794,120]
[321425137,1712182287293,-619.44,0.00054794,120]
[321425138,1712182287302,-500.0,0.00054794,120]
[321425139,1712182287311,-500.0,0.00054794,120]
[321425140,1712182287320,-500.0,0.00054794,120]
[321425141,1712182287330,-2380.48,0.00054794,120]
[321425142,1712182287339,-1373.12,0.00054794,120]
[321425143,1712182287348,-500.0,0.00054794,120]
[321425144,1712182287357,-509.76848421,0.00054794,120]
[321425145,1712182287366,-1541.65,0.00054794,120]
[321425146,1712182287375,-563.41,0.00054794,120]
[321425147,1712182287385,-500.0,0.00054794,120]
[321425148,1712182287394,-500.0,0.00054794,120]
[321425149,1712182287403,-500.0,0.00054794,120]
[321425150,1712182287413,-500.0,0.00054794,120]
[321425151,1712182287423,-355.35908407,0.00054794,120]
[321425152,1712182287431,-500.0,0.00054794,120]
[321425153,1712182287440,-604.59,0.00054794,120]
[321425154,1712182287449,-500.0,0.00054794,120]
[321425155,1712182287458,-869.55,0.00054794,120]
[321425156,1712182287468,-500.0,0.00054794,120]
[321425157,1712182287477,-500.0,0.00054794,120]
[321425158,1712182287486,-2515.17,0.00054794,120]
[321425159,1712182287496,-500.0,0.00054794,120]
[321425160,1712182287505,-1251.7,0.00054794,120]
[321425161,1712182287514,-500.0,0.00054794,120]
[321425162,1712182287523,-500.0,0.00054794,120]
[321425163,1712182287532,-500.0,0.00054794,120]
[321425164,1712182287541,-4948.94,0.00054794,120]
[321425165,1712182287696,-2810.56,0.00054794,120]
[321425166,1712182287705,-52357.43,0.00054794,120]
[321425167,1712182287714,-504.54,0.00054794,120]
[321425168,1712182287723,-312.85701463,0.00054794,120]
[321425169,1712182287733,-786.26,0.00054794,120]
[321425170,1712182287742,-527.7092863,0.00054794,120]
[321425171,1712182287751,-500.0,0.00054794,120]
[321425172,1712182287761,-534.99,0.00054794,120]
[321425173,1712182287770,-500.0,0.00054794,120]
[321425174,1712182287779,-506.74011874,0.00054794,120]
[321425175,1712182287788,-500.0,0.00054794,120]
[321425176,1712182287797,-500.0,0.00054794,120]
[321425177,1712182287806,-500.0,0.00054794,120]
[321425178,1712182287815,-504.77087337,0.00054794,120]
[321425179,1712182287825,-643.75,0.00054794,120]
[321425180,1712182287833,-2329.88,0.00054794,120]
[321425181,1712182287843,-500.0,0.00054794,120]
[321425182,1712182287852,-1544.06,0.00054794,120]
[321425183,1712182287862,-505.98905287,0.00054794,120]
[321425184,1712182287871,-500.0,0.00054794,120]
[321425185,1712182287880,-5631.75,0.00054794,120]
[321425186,1712182287890,-500.0,0.00054794,120]
[321425187,1712182287900,-5631.75,0.00054794,120]
[321425188,1712182287910,-500.0,0.00054794,120]
[321425189,1712182287920,-5631.75,0.00054794,120]
[321425190,1712182287930,-5631.75,0.00054794,120]
[321425191,1712182287939,-500.0,0.00054794,120]
[321425192,1712182287949,-8632.12,0.00054794,120]
[321425193,1712182287958,-4415.02,0.00054794,120]
[321425194,1712182287968,-5631.75,0.00054794,120]
[321425195,1712182287977,-5631.75,0.00054794,120]
[321425196,1712182287987,-5631.75,0.00054794,120]
[321425197,1712182287998,-550.87,0.00054794,120]
[321425198,1712182288008,-5631.75,0.00054794,120]
[321425199,1712182288017,-500.0,0.00054794,120]
[321425200,1712182288026,-5631.75,0.00054794,120]
[321425201,1712182288035,-5631.75,0.00054794,120]
[321425202,1712182288045,-5631.75,0.00054794,120]
[321425203,1712182288054,-5631.75,0.00054794,120]
[321425204,1712182288063,-5631.75,0.00054794,120]
[321425205,1712182288072,-851.69,0.00054794,120]
[321425206,1712182288081,-3139.95,0.00054794,120]
[321425207,1712182288090,-503.77477784,0.00054794,120]
[321425208,1712182288099,-500.0,0.00054794,120]
[321425209,1712182288109,-500.0,0.00054794,120]
[321425210,1712182288118,-500.0,0.00054794,120]
[321425211,1712182288127,-1156.95,0.00054794,120]
[321425212,1712182288136,-500.0,0.00054794,120]
[321425213,1712182288145,-5631.75,0.00054794,120]
[321425214,1712182288155,-600.06,0.00054794,120]
[321425215,1712182288164,-5631.75,0.00054794,120]
[321425216,1712182288175,-5631.75,0.00054794,120]
[321425217,1712182288185,-5631.75,0.00054794,120]
[321425218,1712182288195,-5631.75,0.00054794,120]
[321425219,1712182288205,-5631.75,0.00054794,120]
[321425220,1712182288214,-5631.75,0.00054794,120]
[321425221,1712182288224,-500.0,0.00054794,120]
[321425222,1712182288235,-5631.75,0.00054794,120]
[321425223,1712182288245,-5631.75,0.00054794,120]
[321425224,1712182288255,-5631.75,0.00054794,120]
[321425225,1712182288266,-2830.73,0.00054794,120]
[321425226,1712182288277,-5631.85090655,0.00054794,120]
[321425227,1712182288287,-727.71,0.00054794,120]
[321425228,1712182288297,-500.0,0.00054794,120]
[321425229,1712182288307,-4317.35,0.00054794,120]
[321425230,1712182288317,-500.0,0.00054794,120]
[321425231,1712182288326,-5781.72,0.00054794,120]
[321425232,1712182288335,-500.0,0.00054794,120]
[321425233,1712182288343,-1166.59,0.00054794,120]
[321425234,1712182288353,-1165.33,0.00054794,120]
[321425235,1712182288362,-500.0,0.00054794,120]
[321425236,1712182288371,-3614.27,0.00054794,120]
[321425237,1712182288381,-506.75452413,0.00054794,120]
[321425238,1712182288391,-500.28,0.00054794,120]
[321425239,1712182288403,-500.0,0.00054794,120]
[321425240,1712182288412,-2671.64,0.00054794,120]
[321425241,1712182288423,-1000.0,0.00054794,120]
[321425242,1712182288432,-500.0,0.00054794,120]
[321425243,1712182288441,-500.0,0.00054794,120]
[321425244,1712182288450,-1853.14,0.00054794,120]
[321425245,1712182288459,-1035.92,0.00054794,120]
[321425246,1712182288469,-500.0,0.00054794,120]
[321425247,1712182288478,-2958.64,0.00054794,120]
[321425248,1712182288487,-500.0,0.00054794,120]
[321425249,1712182288497,-505.87066934,0.00054794,120]
[321425250,1712182288506,-500.0,0.00054794,120]
[321425251,1712182288515,-23235.85,0.00054794,120]
[321425252,1712182288524,-571.26,0.00054794,120]
[321425253,1712182288533,-500.0,0.00054794,120]
[321425254,1712182288542,-524.79127473,0.00054794,120]
[321425255,1712182288551,-1218.61,0.00054794,120]
[321425256,1712182288561,-500.0,0.00054794,120]
[321425257,1712182288571,-500.0,0.00054794,120]
[321425258,1712182288579,-500.0,0.00054794,120]
[321425259,1712182288589,-13561.16,0.00054794,120]
[321425260,1712182288600,-1928.79,0.00054794,120]
[321425261,1712182288610,-500.0,0.00054794,120]
[321425262,1712182288619,-730.5,0.00054794,120]
[321425263,1712182288628,-500.0,0.00054794,120]
[321425264,1712182288638,-500.0,0.00054794,120]
[321425265,1712182288647,-500.0,0.00054794,120]
[321425266,1712182288656,-513.17087907,0.00054794,120]
[321425267,1712182288666,-500.0,0.00054794,120]
[321425268,1712182288677,-500.0,0.00054794,120]
[321425269,1712182288686,-500.0,0.00054794,120]
[321425270,1712182288695,-4823.72,0.00054794,120]
[321425271,1712182288705,-525.51817211,0.00054794,120]
[321425272,1712182288714,-500.0,0.00054794,120]
[321425273,1712182288723,-1839.73,0.00054794,120]
[321425274,1712182288732,-500.0,0.00054794,120]
[321425275,1712182288742,-901.12,0.00054794,120]
[321425276,1712182288750,-500.0,0.00054794,120]
[321425277,1712182288760,-1891.12,0.00054794,120]
[321425278,1712182288769,-1273.38,0.00054794,120]
[321425279,1712182288778,-500.0,0.00054794,2]
[321425280,1712182288788,-500.0,0.00054794,120]
[321425281,1712182288797,-500.0,0.00054794,2]
[321425282,1712182288806,-500.0,0.00054794,2]
[321425283,1712182288816,-500.0,0.00054794,120]
[321425284,1712182288825,-500.0,0.00054794,120]
[321425285,1712182288834,-500.0,0.00054794,2]
[321425286,1712182288843,-743.85,0.00054794,120]
[321425287,1712182288852,-500.0,0.00054794,2]
[321425288,1712182288861,-500.0,0.00054794,2]
[321425289,1712182288870,-500.0,0.00054794,2]
[321425290,1712182288879,-1571.1,0.00054794,120]
[321425291,1712182288888,-500.0,0.00054794,2]
[321425292,1712182288898,-500.0,0.00054794,2]
[321425293,1712182288907,-503.38298461,0.00054794,2]
[321425294,1712182288916,-500.0,0.00054794,120]
[321425295,1712182288926,-1166.4,0.00054794,120]
[321425296,1712182288935,-557.7010403,0.00054794,120]
[321425297,1712182288944,-6476.21,0.00054794,120]
[321425298,1712182288953,-677.74,0.00054794,120]
[321425299,1712182288962,-2307.59,0.00054794,120]
[321425300,1712182288971,-500.0,0.00054794,120]
[321425301,1712182288980,-500.0,0.00054794,120]
[321425302,1712182288989,-4214.7,0.00054794,120]
[321425303,1712182288998,-500.0,0.00054794,120]
[321425304,1712182289008,-500.0,0.00054794,120]
[321425305,1712182289017,-500.0,0.00054794,120]
[321425306,1712182289026,-1094.92,0.00054794,120]
[321425307,1712182289035,-500.0,0.00054794,120]
[321425308,1712182289044,-2401.85,0.00054794,120]
[321425309,1712182289054,-500.0,0.00054794,120]
[321425310,1712182289063,-500.0,0.00054794,120]
[321425311,1712182289071,-506.52811703,0.00054794,120]
[321425312,1712182289080,-2341.82,0.00054794,120]
[321425313,1712182289090,-1624.59,0.00054794,120]
[321425314,1712182289098,-40194.92,0.00054794,120]
[321425315,1712182289108,-500.0,0.00054794,120]
[321425316,1712182289117,-500.0,0.00054794,120]
[321425317,1712182289126,-500.0,0.00054794,120]
[321425318,1712182289135,-500.0,0.00054794,120]
[321425319,1712182289144,-1048.4,0.00054794,120]
[321425320,1712182289153,-18725.44,0.00054794,120]
[321425321,1712182289162,-3301.52,0.00054794,120]
[321425322,1712182289173,-507.00974859,0.00054794,120]
[321425323,1712182289182,-3160.42,0.00054794,120]
[321425324,1712182289191,-2618.75,0.00054794,120]
[321425325,1712182289203,-503.92121871,0.00054794,120]
[321425326,1712182289212,-1634.63,0.00054794,120]
[321425327,1712182289222,-500.0,0.00054794,120]
[321425328,1712182289232,-507.86166372,0.00054794,120]
[321425329,1712182289241,-1278.33,0.00054794,120]
[321425330,1712182289250,-500.0,0.00054794,120]
[321425331,1712182289260,-784.86,0.00054794,120]
[321425332,1712182289270,-1519.81,0.00054794,120]
[321425333,1712182289279,-521.39933804,0.00054794,120]
[321425334,1712182289288,-2073.31,0.00054794,120]
[321425335,1712182289297,-500.0,0.00054794,120]
[321425336,1712182289307,-942.86,0.00054794,120]
[321425337,1712182289317,-515.51637738,0.00054794,120]
[321425338,1712182289326,-1000.0,0.00054794,14]
[321425339,1712182289336,-3687.58,0.00054794,120]
[321425340,1712182289345,-6016.54,0.00054794,120]
[321425341,1712182289354,-500.0,0.00054794,120]
[321425342,1712182289363,-963.82,0.00054794,120]
[321425343,1712182289372,-4806.56,0.00054794,120]
[321425344,1712182289382,-505.36500898,0.00054794,120]
[321425345,1712182289391,-512.98882508,0.00054794,120]
[321425346,1712182289401,-500.0,0.00054794,120]
[321425347,1712182289410,-500.0,0.00054794,120]
[321425348,1712182289420,-990.77,0.00054794,120]
[321425349,1712182289429,-1225.81,0.00054794,120]
[321425350,1712182289439,-509.99386918,0.00054794,120]
[321425351,1712182289448,-500.0,0.00054794,120]
[321425352,1712182289457,-1816.51,0.00054794,120]
[321425353,1712182289466,-500.0,0.00054794,120]
[321425354,1712182289475,-500.0,0.00054794,120]
[321425355,1712182289485,-2998.67,0.00054794,120]
[321425356,1712182289494,-500.0,0.00054794,120]
[321425357,1712182289504,-528.3,0.00054794,120]
[321425358,1712182289513,-2368.29,0.00054794,120]
[321425359,1712182289522,-500.0,0.00054794,120]
[321425360,1712182289532,-7192.17,0.00054794,120]
[321425361,1712182289541,-2801.0,0.00054794,120]
[321425362,1712182289550,-512.61665546,0.00054794,120]
[321425363,1712182289559,-7428.5,0.00054794,120]
[321425364,1712182289568,-2726.28,0.00054794,120]
[321425365,1712182289577,-504.9977161,0.00054794,120]
[321425366,1712182289587,-844.09,0.00054794,120]
[321425367,1712182289598,-3041.57,0.00054794,120]
[321425368,1712182289608,-500.0,0.00054794,120]
[321425369,1712182289617,-500.0,0.00054794,120]
[321425370,1712182289626,-500.0,0.00054794,120]
[321425371,1712182289636,-500.0,0.00054794,120]
[321425372,1712182289646,-1269.01,0.00054794,120]
[321425373,1712182289655,-503.17633588,0.00054794,120]
[321425374,1712182289664,-500.0,0.00054794,120]
[321425375,1712182289675,-500.0,0.00054794,120]
[321425376,1712182289685,-500.0,0.00054794,120]
[321425377,1712182289695,-500.0,0.00054794,120]
[321425378,1712182289704,-18834.36,0.00054794,120]
[321425379,1712182289713,-1960.36,0.00054794,120]
[321425380,1712182289722,-1703.32,0.00054794,120]
[321425381,1712182289731,-500.0,0.00054794,120]
[321425382,1712182289740,-5651.64,0.00054794,120]
[321425383,1712182289749,-1164.81,0.00054794,120]
[321425384,1712182289759,-500.0,0.00054794,120]
[321425385,1712182289768,-1164.81,0.00054794,120]
[321425386,1712182289923,-1164.81,0.00054794,120]
[321425387,1712182289933,-2587.56,0.00054794,120]
[321425388,1712182289942,-1164.81,0.00054794,120]
[321425389,1712182289951,-500.0,0.00054794,120]
[321425390,1712182289960,-500.0,0.00054794,120]
[321425391,1712182289970,-1164.81,0.00054794,120]
[321425392,1712182289979,-1164.81,0.00054794,120]
[321425393,1712182289988,-500.0,0.00054794,120]